fUST/lending_fUST_20260505
["ID","MTS","AMOUNT","RATE_DAILY","PERIOD"]
[421607065,1777948242000,-500.0,0.00012328,2]
[421607070,1777948242000,-500.0,0.00012328,2]
[421607069,1777948242000,-500.0,0.00012328,2]
[421607081,1777948242000,-812.89,0.00012328,2]
[421607082,1777948242000,-302.54650808,0.00012328,2]
[421607071,1777948242000,-799.34,0.00012328,2]
[421607080,1777948242000,-500.0,0.00012328,2]
[421607072,1777948242000,-4751.56,0.00012328,2]
[421607073,1777948242000,-500.0,0.00012328,2]
[421607074,1777948242000,-500.0,0.00012328,2]
[421607089,1777948242000,-500.0,0.00012328,2]
[421607079,1777948242000,-581.07,0.00012328,2]
[421607076,1777948242000,-661.2,0.00012328,2]
[421607075,1777948242000,-500.0,0.00012328,2]
[421607087,1777948242000,-500.0,0.00012328,2]
[421607083,1777948242000,-1606.26,0.00012328,2]
[421607086,1777948242000,-500.0,0.00012328,2]
[421607085,1777948242000,-500.0,0.00012328,2]
[421607094,1777948242000,-500.0,0.00012328,2]
[421607084,1777948242000,-1142.56,0.00012328,2]
[421607093,1777948242000,-500.0,0.00012328,2]
[421607096,1777948242000,-500.0,0.00012328,2]
[421607092,1777948242000,-500.0,0.00012328,2]
[421607088,1777948242000,-690.02,0.00012328,2]
[421607091,1777948242000,-500.0,0.00012328,2]
[421607077,1777948242000,-169.40404456,0.00012328,2]
[421607135,1777948242000,-151.0,0.00012328,2]
[421607119,1777948242000,-501.35454223,0.00012328,2]
[421607124,1777948242000,-151.0,0.00012328,2]
[421607160,1777948242000,-901.04,0.00012328,2]
[421607163,1777948242000,-500.0,0.00012328,2]
[421607164,1777948242000,-500.0,0.00012328,2]
[421607154,1777948242000,-1309.39,0.00012328,2]
[421607166,1777948242000,-500.0,0.00012328,2]
[421607174,1777948242000,-670.12,0.00012328,2]
[421607175,1777948242000,-500.0,0.00012328,2]
[421607176,1777948242000,-500.0,0.00012328,2]
[421607177,1777948242000,-500.0,0.00012328,2]
[421607165,1777948242000,-500.0,0.00012328,2]
[421607168,1777948242000,-661.81,0.00012328,2]
[421607167,1777948242000,-3571.2,0.00012328,2]
[421607170,1777948242000,-500.0,0.00012328,2]
[421607161,1777948242000,-500.0,0.00012328,2]
[421607169,1777948242000,-500.0,0.00012328,2]
[421607172,1777948242000,-1318.74,0.00012328,2]
[421607173,1777948242000,-500.0,0.00012328,2]
[421607186,1777948242000,-4934.85,0.00012328,2]
[421607184,1777948242000,-515.26,0.00012328,2]
[421607185,1777948242000,-2878.15,0.00012328,2]
[421607180,1777948242000,-392.37862608,0.00012328,2]
[421607178,1777948242000,-500.0,0.00012328,2]
[421607181,1777948242000,-500.0,0.00012328,2]
[421607182,1777948242000,-1327.3,0.00012328,2]
[421607179,1777948242000,-500.0,0.00012328,2]
[421607187,1777948242000,-3454.89,0.00012328,2]
[421607183,1777948242000,-190.54442809,0.00012328,2]
[421607136,1777948242000,-557.34,0.00012328,2]
[421607171,1777948242000,-1872.72,0.00012328,2]
[421607162,1777948242000,-4765.12,0.00012328,2]
[421607127,1777948242000,-3960.11,0.00012328,2]
[421607157,1777948242000,-500.0,0.00012328,2]
[421607159,1777948242000,-8547.7,0.00012328,2]
[421607126,1777948242000,-151.0,0.00012328,2]
[421607128,1777948242000,-151.0,0.00012328,2]
[421607129,1777948242000,-151.0,0.00012328,2]
[421607134,1777948242000,-500.0,0.00012328,2]
[421607131,1777948242000,-151.0,0.00012328,2]
[421607132,1777948242000,-151.0,0.00012328,2]
[421607133,1777948242000,-151.0,0.00012328,2]
[421607130,1777948242000,-151.0,0.00012328,2]
[421607138,1777948242000,-500.0,0.00012328,2]
[421607139,1777948242000,-176.097836,0.00012328,2]
[421607140,1777948242000,-3834.67,0.00012328,2]
[421607141,1777948242000,-381.38917298,0.00012328,2]
[421607142,1777948242000,-772.25,0.00012328,2]
[421607137,1777948242000,-151.0,0.00012328,2]
[421607147,1777948242000,-1114.96,0.00012328,2]
[421607158,1777948242000,-958.34,0.00012328,2]
[421607156,1777948242000,-319.18835951,0.00012328,2]
[421607155,1777948242000,-4026.29,0.00012328,2]
[421607143,1777948242000,-500.0,0.00012328,2]
[421607151,1777948242000,-3578.84,0.00012328,2]
[421607148,1777948242000,-1036.26,0.00012328,2]
[421607153,1777948242000,-500.0,0.00012328,2]
[421607152,1777948242000,-500.0,0.00012328,2]
[421607144,1777948242000,-500.0,0.00012328,2]
[421607145,1777948242000,-500.0,0.00012328,2]
[421607146,1777948242000,-770.37,0.00012328,2]
[421607150,1777948242000,-500.0,0.00012328,2]
[421607149,1777948242000,-4725.36,0.00012328,2]
[421607237,1777948243000,-806.68,0.00012328,2]
[421607235,1777948243000,-500.0,0.00012328,2]
[421607238,1777948243000,-1243.26,0.00012328,2]
[421607234,1777948243000,-12539.7,0.00012328,2]
[421607232,1777948243000,-500.0,0.00012328,2]
[421607226,1777948243000,-500.0,0.00012328,2]
[421607227,1777948243000,-500.0,0.00012328,2]
[421607230,1777948243000,-926.33,0.00012328,2]
[421607228,1777948243000,-5705.12,0.00012328,2]
[421607231,1777948243000,-500.0,0.00012328,2]
[421607229,1777948243000,-151.504298,0.00012328,2]
[421607240,1777948243000,-500.0,0.00012328,2]
[421607236,1777948243000,-500.0,0.00012328,2]
[421607241,1777948243000,-500.0,0.00012328,2]
[421607250,1777948243000,-500.0,0.00012328,2]
[421607243,1777948243000,-6832.51,0.00012328,2]
[421607246,1777948243000,-1090.9,0.00012328,2]
[421607249,1777948243000,-569.24,0.00012328,2]
[421607247,1777948243000,-3124.55,0.00012328,2]
[421607245,1777948243000,-666.25,0.00012328,2]
[421607252,1777948243000,-500.0,0.00012328,2]
[421607253,1777948243000,-736.86,0.00012328,2]
[421607254,1777948243000,-600.74,0.00012328,2]
[421607255,1777948243000,-3472.22,0.00012328,2]
[421607257,1777948243000,-830.5,0.00012328,2]
[421607262,1777948243000,-166.0,0.00012328,2]
[421607259,1777948243000,-7225.16,0.00012328,2]
[421607222,1777948243000,-774.6,0.00012328,2]
[421607248,1777948243000,-6875.67,0.00012328,2]
[421607221,1777948243000,-500.0,0.00012328,2]
[421607210,1777948243000,-12484.81,0.00012328,2]
[421607218,1777948243000,-2742.76,0.00012328,2]
[421607188,1777948243000,-669.87,0.00012328,2]
[421607190,1777948243000,-3757.49,0.00012328,2]
[421607191,1777948243000,-3877.03,0.00012328,2]
[421607189,1777948243000,-1608.1,0.00012328,2]
[421607194,1777948243000,-500.0,0.00012328,2]
[421607193,1777948243000,-926.43,0.00012328,2]
[421607192,1777948243000,-500.0,0.00012328,2]
[421607196,1777948243000,-3654.82,0.00012328,2]
[421607199,1777948243000,-62166.02,0.00012328,2]
[421607208,1777948243000,-500.0,0.00012328,2]
[421607206,1777948243000,-288.59574068,0.00012328,2]
[421607195,1777948243000,-500.0,0.00012328,2]
[421607207,1777948243000,-11490.16,0.00012328,2]
[421607216,1777948243000,-8201.09,0.00012328,2]
[421607211,1777948243000,-2534.38,0.00012328,2]
[421607267,1777948243000,-500.0,0.00012328,2]
[421607202,1777948243000,-3880.53,0.00012328,2]
[421607201,1777948243000,-500.0,0.00012328,2]
[421607205,1777948243000,-500.0,0.00012328,2]
[421607204,1777948243000,-500.0,0.00012328,2]
[421607213,1777948243000,-500.0,0.00012328,2]
[421607225,1777948243000,-500.44684483,0.00012328,2]
[421607224,1777948243000,-684.05,0.00012328,2]
[421607212,1777948243000,-729.42,0.00012328,2]
[421607223,1777948243000,-2981.99,0.00012328,2]
[421607214,1777948243000,-500.0,0.00012328,2]
[421607215,1777948243000,-500.0,0.00012328,2]
[421607220,1777948243000,-4048.69,0.00012328,2]
[421607197,1777948243000,-500.0,0.00012328,2]
[421607264,1777948243000,-557.99,0.00012328,2]
[421607239,1777948243000,-2394.63,0.00012328,2]
[421607256,1777948243000,-2120.49,0.00012328,2]
[421607301,1777948243000,-649.0,0.00012599,2]
[421607307,1777948243000,-649.0,0.00012599,2]
[421607298,1777948243000,-154.0,0.00012599,2]
[421607308,1777948243000,-649.0,0.00012599,2]
[421607300,1777948243000,-180.52917151,0.00012599,2]
[421607309,1777948243000,-665.09365465,0.00012599,2]
[421607302,1777948243000,-649.0,0.00012599,2]
[421607303,1777948243000,-649.0,0.00012599,2]
[421607304,1777948243000,-649.0,0.00012599,2]
[421607305,1777948243000,-649.0,0.00012599,2]
[421607306,1777948243000,-649.0,0.00012599,2]
[421607310,1777948243000,-341.0,0.00012599,2]
[421607315,1777948243000,-500.0,0.00012602,2]
[421607311,1777948243000,-151.0,0.000126,2]
[421607320,1777948243000,-1178.29,0.00012602,2]
[421607314,1777948243000,-999.42,0.00012602,2]
[421607313,1777948243000,-3365.976,0.00012602,2]
[421607312,1777948243000,-177.62,0.00012601,2]
[421607316,1777948243000,-500.0,0.00012602,2]
[421607321,1777948243000,-490.53887334,0.00012602,2]
[421607318,1777948243000,-547.81360876,0.00012602,2]
[421607319,1777948243000,-500.0,0.00012602,2]
[421607322,1777948243000,-500.0,0.00012602,2]
[421607323,1777948243000,-500.0,0.00012602,2]
[421607325,1777948243000,-500.0,0.00012602,2]
[421607324,1777948243000,-664.84,0.00012602,2]
[421607326,1777948243000,-304.36037051,0.00012602,2]
[421607327,1777948243000,-500.0,0.00012602,2]
[421607260,1777948243000,-166.0,0.00012328,2]
[421607299,1777948243000,-154.0,0.00012599,2]
[421607297,1777948243000,-154.0,0.00012599,2]
[421607317,1777948243000,-500.0,0.00012602,2]
[421607291,1777948243000,-172.0,0.00012599,2]
[421607258,1777948243000,-500.0,0.00012328,2]
[421607289,1777948243000,-154.0,0.00012599,2]
[421607263,1777948243000,-930.46,0.00012328,2]
[421607265,1777948243000,-3884.22,0.00012328,2]
[421607261,1777948243000,-10018.84,0.00012328,2]
[421607268,1777948243000,-500.93986634,0.00012328,2]
[421607266,1777948243000,-1645.4,0.00012328,2]
[421607270,1777948243000,-500.0,0.00012328,2]
[421607278,1777948243000,-163.1809,0.00012465,2]
[421607279,1777948243000,-160.0,0.00012494,3]
[421607281,1777948243000,-313.06360854,0.00012494,5]
[421607272,1777948243000,-500.0,0.00012328,2]
[421607271,1777948243000,-500.0,0.00012328,2]
[421607274,1777948243000,-500.0,0.00012328,2]
[421607273,1777948243000,-500.0,0.00012328,2]
[421607269,1777948243000,-2518.01,0.00012328,2]
[421607275,1777948243000,-500.0,0.00012328,2]
[421607287,1777948243000,-174.85,0.00012592,2]
[421607276,1777948243000,-500.0,0.00012328,2]
[421607285,1777948243000,-151.0,0.0001255,2]
[421607296,1777948243000,-154.0,0.00012599,2]
[421607284,1777948243000,-151.0,0.0001255,2]
[421607295,1777948243000,-154.0,0.00012599,2]
[421607294,1777948243000,-166.0,0.00012599,2]
[421607286,1777948243000,-170.64,0.00012591,2]
[421607292,1777948243000,-154.0,0.00012599,2]
[421607293,1777948243000,-154.0,0.00012599,2]
[421607283,1777948243000,-1000.0,0.000125,3]
[421607277,1777948243000,-1592.5,0.00012328,2]
[421607282,1777948243000,-159.0,0.000125,2]
[421607373,1777948244000,-500.0,0.00012602,2]
[421607372,1777948244000,-932.03,0.00012602,2]
[421607375,1777948244000,-500.0,0.00012602,2]
[421607374,1777948244000,-500.0,0.00012602,2]
[421607371,1777948244000,-500.0,0.00012602,2]
[421607369,1777948244000,-500.0,0.00012602,2]
[421607378,1777948244000,-500.0,0.00012602,2]
[421607366,1777948244000,-996.93,0.00012602,2]
[421607370,1777948244000,-500.0,0.00012602,2]
[421607368,1777948244000,-2262.98,0.00012602,2]
[421607377,1777948244000,-500.0,0.00012602,2]
[421607367,1777948244000,-536.05618066,0.00012602,2]
[421607376,1777948244000,-500.0,0.00012602,2]
[421607379,1777948244000,-724.28,0.00012602,2]
[421607380,1777948244000,-500.0,0.00012602,2]
[421607395,1777948244000,-500.0,0.00012602,2]
[421607382,1777948244000,-500.0,0.00012602,2]
[421607391,1777948244000,-500.0,0.00012602,2]
[421607383,1777948244000,-2035.54,0.00012602,2]
[421607387,1777948244000,-314.75241866,0.00012602,2]
[421607384,1777948244000,-314.31682618,0.00012602,2]
[421607393,1777948244000,-500.0,0.00012602,2]
[421607389,1777948244000,-691.33,0.00012602,2]
[421607392,1777948244000,-500.0,0.00012602,2]
[421607386,1777948244000,-500.0,0.00012602,2]
[421607385,1777948244000,-577.98,0.00012602,2]
[421607388,1777948244000,-1801.69,0.00012602,2]
[421607390,1777948244000,-500.0,0.00012602,2]
[421607365,1777948244000,-500.0,0.00012602,2]
[421607405,1777948244000,-510.5823321,0.00012602,2]
[421607381,1777948244000,-500.0,0.00012602,2]
[421607364,1777948244000,-1103.16,0.00012602,2]
[421607336,1777948244000,-500.0,0.00012602,2]
[421607359,1777948244000,-500.0,0.00012602,2]
[421607407,1777948244000,-500.0,0.00012602,2]
[421607338,1777948244000,-500.0,0.00012602,2]
[421607334,1777948244000,-500.0,0.00012602,2]
[421607332,1777948244000,-500.0,0.00012602,2]
[421607328,1777948244000,-1711.75,0.00012602,2]
[421607329,1777948244000,-500.0,0.00012602,2]
[421607330,1777948244000,-500.0,0.00012602,2]
[421607331,1777948244000,-500.0,0.00012602,2]
[421607340,1777948244000,-1796.0,0.00012602,2]
[421607351,1777948244000,-500.0,0.00012602,2]
[421607342,1777948244000,-500.0,0.00012602,2]
[421607350,1777948244000,-679.75,0.00012602,2]
[421607343,1777948244000,-500.0,0.00012602,2]
[421607339,1777948244000,-500.0,0.00012602,2]
[421607344,1777948244000,-500.0,0.00012602,2]
[421607341,1777948244000,-500.0,0.00012602,2]
[421607347,1777948244000,-500.0,0.00012602,2]
[421607363,1777948244000,-500.0,0.00012602,2]
[421607358,1777948244000,-500.0,0.00012602,2]
[421607360,1777948244000,-500.0,0.00012602,2]
[421607355,1777948244000,-500.0,0.00012602,2]
[421607356,1777948244000,-500.0,0.00012602,2]
[421607353,1777948244000,-500.0,0.00012602,2]
[421607361,1777948244000,-500.0,0.00012602,2]
[421607362,1777948244000,-561.01,0.00012602,2]
[421607354,1777948244000,-535.82,0.00012602,2]
[421607352,1777948244000,-842.79,0.00012602,2]
[421607348,1777948244000,-500.0,0.00012602,2]
[421607345,1777948244000,-1548.16,0.00012602,2]
[421607349,1777948244000,-500.0,0.00012602,2]
[421607346,1777948244000,-614.47,0.00012602,2]
[421607357,1777948244000,-500.0,0.00012602,2]
[421607396,1777948244000,-854.72,0.00012602,2]
[421607445,1777948244000,-679.58,0.00012602,2]
[421607406,1777948244000,-500.0,0.00012602,2]
[421607426,1777948244000,-500.0,0.00012602,2]
[421607436,1777948244000,-927.27,0.00012602,2]
[421607437,1777948244000,-500.0,0.00012602,2]
[421607447,1777948244000,-1000.0,0.00012602,2]
[421607438,1777948244000,-500.0,0.00012602,2]
[421607442,1777948244000,-1154.41,0.00012602,2]
[421607440,1777948244000,-500.0,0.00012602,2]
[421607441,1777948244000,-500.0,0.00012602,2]
[421607439,1777948244000,-737.9,0.00012602,2]
[421607443,1777948244000,-500.0,0.00012602,2]
[421607444,1777948244000,-1331.97,0.00012602,2]
[421607446,1777948244000,-500.0,0.00012602,2]
[421607449,1777948244000,-500.0,0.00012602,2]
[421607459,1777948244000,-500.0,0.00012602,2]
[421607431,1777948244000,-500.0,0.00012602,2]
[421607460,1777948244000,-500.0,0.00012602,2]
[421607453,1777948244000,-500.0,0.00012602,2]
[421607450,1777948244000,-834.1,0.00012602,2]
[421607461,1777948244000,-500.0,0.00012602,2]
[421607448,1777948244000,-2176.25,0.00012602,2]
[421607451,1777948244000,-500.0,0.00012602,2]
[421607454,1777948244000,-500.0,0.00012602,2]
[421607456,1777948244000,-500.0,0.00012602,2]
[421607455,1777948244000,-500.0,0.00012602,2]
[421607457,1777948244000,-2151.56,0.00012602,2]
[421607458,1777948244000,-1389.42,0.00012602,2]
[421607462,1777948244000,-698.83,0.00012602,2]
[421607397,1777948244000,-500.0,0.00012602,2]
[421607464,1777948244000,-685.93,0.00012602,2]
[421607465,1777948244000,-2378.74,0.00012602,2]
[421607452,1777948244000,-500.0,0.00012602,2]
[421607430,1777948244000,-739.53,0.00012602,2]
[421607463,1777948244000,-1150.74,0.00012602,2]
[421607432,1777948244000,-4737.51,0.00012602,2]
[421607424,1777948244000,-689.05,0.00012602,2]
[421607398,1777948244000,-798.19,0.00012602,2]
[421607400,1777948244000,-500.0,0.00012602,2]
[421607402,1777948244000,-500.0,0.00012602,2]
[421607403,1777948244000,-3203.04,0.00012602,2]
[421607401,1777948244000,-582.7,0.00012602,2]
[421607404,1777948244000,-856.72,0.00012602,2]
[421607408,1777948244000,-500.0,0.00012602,2]
[421607419,1777948244000,-2342.59,0.00012602,2]
[421607421,1777948244000,-750.23,0.00012602,2]
[421607413,1777948244000,-500.0,0.00012602,2]
[421607412,1777948244000,-500.0,0.00012602,2]
[421607417,1777948244000,-500.0,0.00012602,2]
[421607409,1777948244000,-500.0,0.00012602,2]
[421607411,1777948244000,-500.0,0.00012602,2]
[421607399,1777948244000,-152.05529633,0.00012602,2]
[421607420,1777948244000,-980.61,0.00012602,2]
[421607410,1777948244000,-1802.41,0.00012602,2]
[421607427,1777948244000,-565.01,0.00012602,2]
[421607435,1777948244000,-500.0,0.00012602,2]
[421607433,1777948244000,-973.47,0.00012602,2]
[421607434,1777948244000,-500.0,0.00012602,2]
[421607422,1777948244000,-500.0,0.00012602,2]
[421607429,1777948244000,-2631.56,0.00012602,2]
[421607425,1777948244000,-500.0,0.00012602,2]
[421607423,1777948244000,-500.0,0.00012602,2]
[421607414,1777948244000,-500.0,0.00012602,2]
[421607418,1777948244000,-500.0,0.00012602,2]
[421607394,1777948244000,-500.0,0.00012602,2]
[421607416,1777948244000,-500.0,0.00012602,2]
[421607428,1777948244000,-871.19,0.00012602,2]
[421607415,1777948244000,-500.0,0.00012602,2]
[421607518,1777948245000,-500.0,0.00012602,2]
[421607516,1777948245000,-500.0,0.00012602,2]
[421607505,1777948245000,-549.75,0.00012602,2]
[421607506,1777948245000,-712.25,0.00012602,2]
[421607517,1777948245000,-500.0,0.00012602,2]
[421607498,1777948245000,-592.71053763,0.00012602,2]
[421607494,1777948245000,-596.82,0.00012602,2]
[421607495,1777948245000,-2626.43,0.00012602,2]
[421607496,1777948245000,-4757.34,0.00012602,2]
[421607503,1777948245000,-500.0,0.00012602,2]
[421607504,1777948245000,-500.0,0.00012602,2]
[421607514,1777948245000,-799.34,0.00012602,2]
[421607515,1777948245000,-4751.56,0.00012602,2]
[421607513,1777948245000,-500.0,0.00012602,2]
[421607507,1777948245000,-500.0,0.00012602,2]
[421607512,1777948245000,-500.0,0.00012602,2]
[421607511,1777948245000,-500.0,0.00012602,2]
[421607509,1777948245000,-618.50397295,0.00012602,2]
[421607510,1777948245000,-500.0,0.00012602,2]
[421607522,1777948245000,-812.89,0.00012602,2]
[421607519,1777948245000,-661.2,0.00012602,2]
[421607521,1777948245000,-500.0,0.00012602,2]
[421607520,1777948245000,-581.07,0.00012602,2]
[421607530,1777948245000,-500.0,0.00012602,2]
[421607529,1777948245000,-500.0,0.00012602,2]
[421607526,1777948245000,-500.0,0.00012602,2]
[421607501,1777948245000,-500.0,0.00012602,2]
[421607508,1777948245000,-500.0,0.00012602,2]
[421607502,1777948245000,-500.0,0.00012602,2]
[421607480,1777948245000,-530.67348984,0.00012602,2]
[421607497,1777948245000,-695.85,0.00012602,2]
[421607525,1777948245000,-500.0,0.00012602,2]
[421607474,1777948245000,-500.0,0.00012602,2]
[421607475,1777948245000,-1217.46,0.00012602,2]
[421607476,1777948245000,-500.0,0.00012602,2]
[421607472,1777948245000,-500.0,0.00012602,2]
[421607473,1777948245000,-788.36,0.00012602,2]
[421607466,1777948245000,-986.34,0.00012602,2]
[421607469,1777948245000,-500.0,0.00012602,2]
[421607467,1777948245000,-2050.89,0.00012602,2]
[421607468,1777948245000,-500.0,0.00012602,2]
[421607471,1777948245000,-627.96,0.00012602,2]
[421607470,1777948245000,-500.0,0.00012602,2]
[421607477,1777948245000,-500.0,0.00012602,2]
[421607479,1777948245000,-500.0,0.00012602,2]
[421607488,1777948245000,-642.95268134,0.00012602,2]
[421607486,1777948245000,-500.0,0.00012602,2]
[421607481,1777948245000,-540.38,0.00012602,2]
[421607489,1777948245000,-2858.31,0.00012602,2]
[421607478,1777948245000,-500.0,0.00012602,2]
[421607487,1777948245000,-2025.61,0.00012602,2]
[421607485,1777948245000,-1058.3,0.00012602,2]
[421607483,1777948245000,-1290.492,0.00012602,2]
[421607482,1777948245000,-500.0,0.00012602,2]
[421607490,1777948245000,-1619.22,0.00012602,2]
[421607484,1777948245000,-1130.14,0.00012602,2]
[421607491,1777948245000,-954.17,0.00012602,2]
[421607492,1777948245000,-500.0,0.00012602,2]
[421607493,1777948245000,-630.61,0.00012602,2]
[421607500,1777948245000,-759.14,0.00012602,2]
[421607499,1777948245000,-721.3,0.00012602,2]
[421607523,1777948245000,-1606.26,0.00012602,2]
[421607527,1777948245000,-500.0,0.00012602,2]
[421607528,1777948245000,-690.02,0.00012602,2]
[421607563,1777948245000,-500.0,0.00012602,2]
[421607566,1777948245000,-500.0,0.00012602,2]
[421607565,1777948245000,-557.34,0.00012602,2]
[421607577,1777948245000,-3578.84,0.00012602,2]
[421607576,1777948245000,-156.58328324,0.00012602,2]
[421607567,1777948245000,-3834.67,0.00012602,2]
[421607568,1777948245000,-772.25,0.00012602,2]
[421607572,1777948245000,-770.37,0.00012602,2]
[421607575,1777948245000,-4725.36,0.00012602,2]
[421607571,1777948245000,-500.0,0.00012602,2]
[421607573,1777948245000,-1114.96,0.00012602,2]
[421607569,1777948245000,-500.0,0.00012602,2]
[421607570,1777948245000,-500.0,0.00012602,2]
[421607578,1777948245000,-500.0,0.00012602,2]
[421607580,1777948245000,-1309.39,0.00012602,2]
[421607579,1777948245000,-500.0,0.00012602,2]
[421607581,1777948245000,-4026.29,0.00012602,2]
[421607587,1777948245000,-4765.12,0.00012602,2]
[421607582,1777948245000,-500.0,0.00012602,2]
[421607583,1777948245000,-958.34,0.00012602,2]
[421607588,1777948245000,-500.0,0.00012602,2]
[421607589,1777948245000,-500.0,0.00012602,2]
[421607586,1777948245000,-500.0,0.00012602,2]
[421607590,1777948245000,-500.0,0.00012602,2]
[421607585,1777948245000,-901.04,0.00012602,2]
[421607584,1777948245000,-8547.7,0.00012602,2]
[421607591,1777948245000,-413.30332616,0.00012602,2]
[421607592,1777948245000,-3571.2,0.00012602,2]
[421607524,1777948245000,-1142.56,0.00012602,2]
[421607564,1777948245000,-151.0,0.00012602,2]
[421607562,1777948245000,-151.0,0.00012602,2]
[421607574,1777948245000,-1036.26,0.00012602,2]
[421607559,1777948245000,-600.77,0.00012602,2]
[421607561,1777948245000,-3960.11,0.00012602,2]
[421607531,1777948245000,-500.0,0.00012602,2]
[421607532,1777948245000,-500.0,0.00012602,2]
[421607533,1777948245000,-500.0,0.00012602,2]
[421607534,1777948245000,-500.0,0.00012602,2]
[421607546,1777948245000,-500.0,0.00012602,2]
[421607545,1777948245000,-1567.11,0.00012602,2]
[421607547,1777948245000,-500.0,0.00012602,2]
[421607544,1777948245000,-500.0,0.00012602,2]
[421607542,1777948245000,-500.0,0.00012602,2]
[421607538,1777948245000,-430.67481232,0.00012602,2]
[421607536,1777948245000,-500.0,0.00012602,2]
[421607541,1777948245000,-500.0,0.00012602,2]
[421607539,1777948245000,-351.52468133,0.00012602,2]
[421607537,1777948245000,-591.56,0.00012602,2]
[421607535,1777948245000,-4810.84,0.00012602,2]
[421607560,1777948245000,-151.0,0.00012602,2]
[421607543,1777948245000,-951.66,0.00012602,2]
[421607555,1777948245000,-500.0,0.00012602,2]
[421607558,1777948245000,-8149.78,0.00012602,2]
[421607551,1777948245000,-805.17,0.00012602,2]
[421607557,1777948245000,-11115.21,0.00012602,2]
[421607556,1777948245000,-500.0,0.00012602,2]
[421607553,1777948245000,-500.0,0.00012602,2]
[421607554,1777948245000,-614.70063886,0.00012602,2]
[421607550,1777948245000,-475.83434255,0.00012602,2]
[421607548,1777948245000,-500.0,0.00012602,2]
[421607549,1777948245000,-12715.76,0.00012602,2]
[421607540,1777948245000,-524.23,0.00012602,2]
[421607552,1777948245000,-2413.08,0.00012602,2]
[421607617,1777948246000,-926.43,0.00012602,2]
[421607612,1777948246000,-669.87,0.00012602,2]
[421607615,1777948246000,-3877.03,0.00012602,2]
[421607606,1777948246000,-1327.3,0.00012602,2]
[421607616,1777948246000,-500.0,0.00012602,2]
[421607618,1777948246000,-500.0,0.00012602,2]
[421607623,1777948246000,-533.81946202,0.00012602,2]
[421607614,1777948246000,-3757.49,0.00012602,2]
[421607620,1777948246000,-3654.82,0.00012602,2]
[421607619,1777948246000,-500.0,0.00012602,2]
[421607630,1777948246000,-2534.38,0.00012602,2]
[421607621,1777948246000,-500.0,0.00012602,2]
[421607611,1777948246000,-3454.89,0.00012602,2]
[421607613,1777948246000,-1608.1,0.00012602,2]
[421607610,1777948246000,-4934.85,0.00012602,2]
[421607593,1777948246000,-661.81,0.00012602,2]
[421607607,1777948246000,-515.26,0.00012602,2]
[421607605,1777948246000,-500.0,0.00012602,2]
[421607600,1777948246000,-500.0,0.00012602,2]
[421607599,1777948246000,-670.12,0.00012602,2]
[421607597,1777948246000,-1318.74,0.00012602,2]